Cogmind - Beta 13 *** ADVENTURER MODE // 2024.04.04 @ 19:30:11 Player: Nexusuxen Result: Destroyed by Y-54 Guardian with Flak Gun Performance ------------- Evolutions (4) 2000 Regions Visited (7) 1400 Robots Destroyed (75) 375 Value Destroyed (2066) 2066 Prototype IDs (4) 80 Alien Tech Used (0) 0 Bonus (783) 783 TOTAL SCORE: 6704 Bonus ------- High Alert Combat Kills 30 Follower Combat Kills 153 Met Imprinter 300 Was Imprinted 300 Cogmind --------- Core Integrity 0/850 Matter 282/300 Energy 265/265 System Corruption 14% Temperature Cool (18) Movement Rolling (130) Ox2 Location -6/Factory Parts ------- > --- POWER (1) -------- Improved Ion Engine > --- PROPULSION (6) --- Compact Wheel Compact Wheel > --- UTILITY (4) ------ Huge Storage Unit 0b10 Decoder Chip [Looter] Core Analyzer Backup Plating III > --- WEAPON (4) ------- Maul > --- INVENTORY (25) --- Fusion Compressor Light Treads Heat Sink Advanced Heat Sink Medium Storage Unit High-capacity Matter Pod (200) Gravity Neutralizer Mobile Refinery Mk. CCLXVII Z-Drone Bay (2/2) Improved Datajack CR-A16's Pointy Stick GAL Module Peak State ------------ > --- POWER ------------ Cooled Ion Engine > --- PROPULSION ------- Armored Treads Medium Treads Improved Medium Treads Improved Medium Treads Improved Medium Treads Improved Medium Treads > --- UTILITY ---------- Huge Storage Unit 0b10 Decoder Chip [Looter] Light Armor Plating Medium Reactive Plating > --- WEAPON ----------- Heavy Assault Rifle Improved Assault Rifle CR-A16's Pointy Stick > --- INVENTORY -------- Improved Ion Engine Fusion Compressor Light Treads Light Treads Light Treads Light Treads Light Treads Heat Sink Medium Storage Unit High-capacity Matter Pod Gravity Neutralizer Core Analyzer Light Armor Plating Mobile Refinery Mk. CCLXVII Improved Datajack Plasma Cutter GAL Module [Rating: 54] Favorites ----------- Power Cooled Ion Engine Engine Cooled Ion Engine Propulsion Light Treads Treads Light Treads Wheel Compact Wheel Utility Huge Storage Unit Device Shield Generator Storage Huge Storage Unit Processor 0b10 Decoder Chip [Generic] Protection Light Armor Plating Weapon Improved Assault Rifle Ballistic Gun Improved Assault Rifle Ballistic Cannon Improved Light Cannon Launcher Rocket Launcher Special Weapon Plasma Cutter Impact Weapon Maul Piercing Weapon CR-A16's Pointy Stick Special Melee Weapon Improved Datajack Build | -11 -10 -10 -9 -9 -7 -6 -6 ------- Run | Yrd Mat Min Mat Min Zio Pro Fac Slots Evolved 8 | . . . 2 . . . 6 Power . | . . . . . . . . Propulsion 4 | . . . 2 . . . 2 Utility 2 | . . . . . . . 2 Weapon 2 | . . . . . . . 2 Parts Attached 85 | 6 6 . 26 . 1 16 30 Power 8 | 2 1 . 4 . . . 1 Engine 8 | 2 1 . 4 . . . 1 Core . | . . . . . . . . Reactor . | . . . . . . . . Propulsion 33 | 2 . . 7 . . 6 18 Treads 26 | 2 . . 7 . . 6 11 Leg . | . . . . . . . . Wheel 7 | . . . . . . . 7 Hover . | . . . . . . . . Flight . | . . . . . . . . Utility 20 | 1 2 . 5 . 1 3 8 Device 6 | . . . 2 . . 2 2 Storage 3 | 1 1 . 1 . . . . Processor 3 | . . . . . 1 . 2 Hackware . | . . . . . . . . Protection 8 | . 1 . 2 . . 1 4 Artifact . | . . . . . . . . Weapon 24 | 1 3 . 10 . . 7 3 Energy Gun . | . . . . . . . . Energy Cannon . | . . . . . . . . Ballistic Gun 13 | 1 3 . 6 . . 3 . Ballistic Cannon 1 | . . . 1 . . . . Launcher 5 | . . . 3 . . 2 . Special Weapon 2 | . . . . . . 1 1 Impact Weapon 1 | . . . . . . . 1 Slashing Weapon . | . . . . . . . . Piercing Weapon 1 | . . . . . . . 1 Special Melee Weapon 1 | . . . . . . 1 . Unidentified Prototypes 4 | . . . 2 . . 1 1 Parts Lost 29 | . 1 . 1 . . 6 21 Power 3 | . 1 . 1 . . . 1 Propulsion 17 | . . . . . . 3 14 Utility 4 | . . . . . . 1 3 Weapon 5 | . . . . . . 2 3 Highest Loss Streak 12 | . 1 . 1 . . 6 12 To Critical Strikes 2 | . . . . . . . 2 Average Slot Usage (%) 94 | . 97 100 96 100 100 93 68 Engine 10 | . 13 14 10 11 11 11 4 Treads 37 | . 28 28 41 44 44 43 18 Wheel 1 | . . . . . . . 9 Device 2 | . . . 1 11 2 . . Storage 10 | . 14 14 11 11 11 11 6 Processor 4 | . . . . . 8 6 8 Protection 5 | . 13 14 9 . . 1 5 Ballistic Gun 19 | . 25 28 18 22 22 14 5 Naked Turns . | . . . . . . . . Heaviest Build 120 | 12 19 19 97 96 96 114 120 Greatest Support 168 | 40 40 40 86 86 86 94 168 Greatest Overweight (x) 27 | . . . 1 1 1 1 27 Average Overweight (x) . | . . . . 1 1 1 1 Largest Inventory Capacity 25 | 8 10 10 25 25 25 25 25 Average Capacity 19 | 7 9 10 13 25 25 25 25 Most Carried 20 | 2 10 10 13 13 18 20 17 Average Carried 12 | . 6 10 10 13 15 17 12 Final Capacity 25 | 8 10 10 25 25 25 25 25 Final Carried 18 | 1 10 10 13 13 18 15 12 Class Distribution -------------------- 91% | Mutant 8% | Scavenger-Mutant Dominant Class ---------------- Mutant | -10/Materials Mutant | -10/Mines Mutant | -9/Materials Mutant | -9/Mines Mutant | -7/Zion Mutant | -6/Proximity Caves Scavenger-Mutant | -6/Factory Resources | -11 -10 -10 -9 -9 -7 -6 -6 ----------- Run | Yrd Mat Min Mat Min Zio Pro Fac Matter Collected 2470 | 232 240 166 1145 68 22 318 279 Remotely . | . . . . . . . . Salvage Created 2717 | . 142 90 1324 25 . 187 949 Parts 171 | . 4 4 109 4 . 3 47 Haulers Intercepted 6 | . 1 . 5 . . . . Recyclers Shooed . | . . . . . . . . Parts Field Recycled . | . . . . . . . . Retrieved Matter . | . . . . . . . . Parts Self-Destructed 3 | . . . . . . 3 . Prevented . | . . . . . . . . Kills | -11 -10 -10 -9 -9 -7 -6 -6 ------- Run | Yrd Mat Min Mat Min Zio Pro Fac Combat Hostiles Destroyed 46 | . 2 2 28 . . 6 8 Melee 8 | . . . . . . 1 7 Guns 24 | . 2 2 18 . . 2 . Cannons 6 | . . . 6 . . . . AOE 7 | . . . 4 . . 3 . Classes Destroyed 12 | . 3 . 6 1 . . 2 Worker 5 | . . . 1 . . . 4 Builder 2 | . . . 2 . . . . Tunneler 1 | . . . . 1 . . . Hauler 6 | . 1 . 5 . . . . Recycler 4 | . . . . . . . 4 Mechanic 2 | . . . 1 . . . 1 Operator 3 | . . . 3 . . . . Watcher 6 | . 1 . 5 . . . . Swarmer 8 | . . . 4 . . 2 2 Grunt 26 | . 2 2 17 . . 3 2 Sentry 9 | . . . 7 . . 1 1 Programmer 3 | . . . . . . . 3 Best Kill Streak 9 | . 2 2 9 1 . 3 5 Combat Bots Only 5 | . 2 2 5 . . 3 1 Max Kills in Single Turn 4 | . 1 1 4 1 . 1 1 Gunslinging . | . . . . . . . . Exploded 2 | . . . 2 . . 1 . Melee 1 | . . . . . . 1 1 Uniques/NPCs Destroyed . | . . . . . . . . Combat | -11 -10 -10 -9 -9 -7 -6 -6 -------- Run | Yrd Mat Min Mat Min Zio Pro Fac Hostile Shots Fired 763 | . 15 11 141 7 . 108 481 Missed 238 | . 1 6 44 1 . 34 152 Damage Taken 5480 | . 160 45 880 46 . 1068 3281 Core 1122 | . 20 8 83 9 . 152 850 Absorbed by Shields 76 | . . . 6 16 . 54 . Ignored by Resistances 1966 | . 47 14 265 16 . 385 1239 Regen/Repaired (Parts) 69 | . . . 69 . . . . Core Remaining (%) 75 | 100 . 88 . . . 39 . Volleys Fired 155 | . 13 8 90 3 . 37 4 Largest 2 | . 2 2 2 2 . 2 2 Hottest 72 | . 40 40 72 46 . 56 46 Shots Fired 283 | . 23 16 182 6 . 50 6 Gun 234 | . 23 16 139 6 . 45 5 Cannon 39 | . . . 39 . . . . Launcher 9 | . . . 4 . . 5 . Special 1 | . . . . . . . 1 Kinetic 273 | . 23 16 178 6 . 45 5 Thermal 1 | . . . . . . . 1 Explosive 9 | . . . 4 . . 5 . Electromagnetic . | . . . . . . . . Robot Hit Streak 37 | . 13 14 37 1 . 7 13 Robot Miss Streak 3 | . 3 1 2 1 . 1 . Penetration Max . | . . . . . . . . Secondary Targets 4 | . . 1 3 . . . . Max Gunslinging Chain 1 | . . 1 1 . . . . Shots Hit Robots 248 | . 16 13 140 3 . 26 50 Core Hits 115 | . 7 7 62 3 . 18 18 Critical Kills 1 | . . . . . . . 1 Critical Parts Destroyed 2 | . . . . . . . 2 Critical Strikes 7 | . . . . . . . 7 Smash 3 | . . . . . . . 3 Impale 4 | . . . . . . . 4 Melee Attacks 61 | . . . . . . 4 57 Impact 12 | . . . . . . . 12 Slashing . | . . . . . . . . Piercing 45 | . . . . . . . 45 Sneak Attacks 9 | . . . . . . . 9 Combat Hostiles . | . . . . . . . . Follow-up Attacks . | . . . . . . . . Damage Inflicted 5639 | . 160 129 2659 55 . 717 1919 Guns 2329 | . 157 129 1631 55 . 269 88 Cannons 584 | . . . 584 . . . . Explosions 832 | . . . 398 . . 434 . Melee 1820 | . . . . . . . 1820 Ramming 63 | . 3 . 46 . . 14 . Kinetic 2913 | . 157 129 2215 55 . 269 88 Thermal 110 | . . . 99 . . . 11 Explosive 733 | . . . 299 . . 434 . Electromagnetic . | . . . . . . . . Impact 422 | . . . . . . . 422 Slashing . | . . . . . . . . Piercing 1398 | . . . . . . . 1398 Highest Corruption 14 | . 1 1 1 1 1 . 14 Average Corruption 2 | . 1 1 1 1 1 . 9 Corruption Purged . | . . . . . . . . Corruption Blocked . | . . . . . . . . Effects 57 | . 4 4 9 8 . . 32 Message Errors 15 | . . . 1 3 . . 11 Matter Fused 19 | . 2 2 3 1 . . 11 Heat Flow Errors 10 | . 1 2 2 3 . . 2 Energy Discharges 3 | . . . . 1 . . 2 Parts Rejected 1 | . . . . . . . 1 Parts Fused 1 | . . . . . . . 1 Data Loss (minor) 2 | . . . . . . . 2 Data Loss (major) 2 | . . . . . . . 2 Misfires 3 | . 1 . 2 . . . . Alerts 1 | . . . 1 . . . . Overload Shots . | . . . . . . . . Overflow Damage 338 | . . . 68 . . . 270 Projectiles 9 | . . . 9 . . . . Explosions 59 | . . . 59 . . . . Melee 270 | . . . . . . . 270 Knockbacks 5 | . . . 4 . . . 1 Impact 1 | . . . . . . . 1 Kinetic 4 | . . . 4 . . . . Secondary . | . . . . . . . . Self-Inflicted Damage 54 | . . . 32 . . 22 . Shots 3 | . . . 1 . . 2 . Rammed 10 | . 1 . 5 . . 4 . Targets Rammed 14 | . 1 . 9 . . 4 . Kicked . | . . . . . . . . Crushed 4 | . . . 4 . . . . Highest Temperature 274 | . 237 249 270 274 . 19 178 Average Temperature 40 | . 54 75 21 110 . 7 62 Received Heat Transfer 1861 | . 84 33 399 46 . 432 867 Siege Activations . | . . . . . . . . Robots Corrupted . | . . . . . . . . Combat Hostiles . | . . . . . . . . Parts Fried 4 | . . . . . . . 4 Impact Corruptions 7 | . . . . . . . 7 Robots Melted . | . . . . . . . . Combat Hostiles . | . . . . . . . . Parts Melted . | . . . . . . . . Heat Transferred 87 | . . . 50 . . . 37 Parts Sabotaged . | . . . . . . . . Parts Stolen . | . . . . . . . . Parts Stripped . | . . . . . . . . Power Chain Reactions . | . . . . . . . . Alert | -11 -10 -10 -9 -9 -7 -6 -6 ------- Run | Yrd Mat Min Mat Min Zio Pro Fac Peak Influence 445 | . 69 50 445 58 . . 220 Initial 6 | . . . . 6 . . . Average 70 | . 8 16 138 15 . . 51 Maximum Alert Level 2 | . . . 2 . . . 1 Low Security (%) 84 | 100 100 100 64 100 . . 94 Level 1 14 | . . . 31 . . . 5 Level 2 1 | . . . 3 . . . . Level 3 . | . . . . . . . . Level 4 . | . . . . . . . . Level 5 . | . . . . . . . . High Security . | . . . . . . . . Max Security . | . . . . . . . . Squads Dispatched 10 | . . . 5 . . . 5 Investigation 2 | . . . 1 . . . 1 Extermination 3 | . . . . . . . 3 Reinforcement 5 | . . . 4 . . . 1 Assault . | . . . . . . . . Garrison . | . . . . . . . . Intercept . | . . . . . . . . Searches Triggered . | . . . . . . . . Construction Impeded 1 | . . . 1 . . . . Haulers Reinforced . | . . . . . . . . Active Scanning Responses . | . . . . . . . . Cargo Convoy Interrupts . | . . . . . . . . Stealth | -11 -10 -10 -9 -9 -7 -6 -6 --------- Run | Yrd Mat Min Mat Min Zio Pro Fac Distress Signals 5 | . 1 . 3 . . . 1 Communications Jammed . | . . . . . . . . Distress Signals . | . . . . . . . . Times Spotted 95 | . 3 2 45 2 . 11 32 Peak Tracking Total 10 | . 2 2 5 2 . 7 10 Tactical Retreats 12 | . . . 1 . . . 11 Traps | -11 -10 -10 -9 -9 -7 -6 -6 ------- Run | Yrd Mat Min Mat Min Zio Pro Fac Traps Triggered 4 | . 1 . 2 . . . 1 Indirectly . | . . . . . . . . Trap Hack Attempts . | . . . . . . . . Triggered . | . . . . . . . . Disarmed 1 | . 1 . . . . . . Reprogrammed . | . . . . . . . . Reused . | . . . . . . . . Traps Extracted . | . . . . . . . . Installed . | . . . . . . . . Triggered . | . . . . . . . . Machines | -11 -10 -10 -9 -9 -7 -6 -6 ---------- Run | Yrd Mat Min Mat Min Zio Pro Fac Machines Disabled 5 | . . . 3 . . 2 . Max in Single Turn 2 | . . . 2 . . 2 . Machines Repaired . | . . . . . . . . Machines Dismantled 1 | . . . . . . 1 . Machines Sabotaged . | . . . . . . . . Overloaded Fab Kills . | . . . . . . . . Hacking | -11 -10 -10 -9 -9 -7 -6 -6 --------- Run | Yrd Mat Min Mat Min Zio Pro Fac Machines Accessed 16 | . 4 . 10 . 1 . 1 Terminals 8 | . 3 . 5 . . . . Fabricators . | . . . . . . . . Repair Stations 2 | . . . 2 . . . . Recycling Units 3 | . 1 . 2 . . . . Scanalyzers 1 | . . . 1 . . . . Garrison Access 1 | . . . . . . . 1 Total Hacks 33 | . 9 . 20 . 2 . 2 Successful 23 | . 6 . 15 . 2 . . Failed 10 | . 3 . 5 . . . 2 Catastrophic . | . . . . . . . . Database Lockouts . | . . . . . . . . Manual 11 | . . . 7 . . . 4 Terminals 14 | . 8 . 6 . . . . Fabricators . | . . . . . . . . Repair Stations 7 | . . . 7 . . . . Recycling Units 6 | . 1 . 5 . . . . Scanalyzers 2 | . . . 2 . . . . Garrison Access 2 | . . . . . . . 2 Terminal Hacks 12 | . 5 . 5 . 2 . . Part Schematic 2 | . . . . . 2 . . Robot Analysis 1 | . . . 1 . . . . Alert Level 1 | . 1 . . . . . . Locate Traps 2 | . 1 . 1 . . . . Disarm Traps 2 | . 1 . 1 . . . . Maintenance Status 1 | . 1 . . . . . . Transport Status 1 | . . . 1 . . . . Hauler Manifests 1 | . 1 . . . . . . Zone Layout 1 | . . . 1 . . . . Fabricator Hacks . | . . . . . . . . Repair Station Hacks 5 | . . . 5 . . . . Scan Component 2 | . . . 2 . . . . Repair 2 | . . . 2 . . . . Refit 1 | . . . 1 . . . . Recycling Unit Hacks 4 | . 1 . 3 . . . . Report Inventory 3 | . 1 . 2 . . . . Retrieve Components 1 | . . . 1 . . . . Scanalyzer 2 | . . . 2 . . . . Insert Component 1 | . . . 1 . . . . Analyze 1 | . . . 1 . . . . Garrison Access Hacks . | . . . . . . . . Unauthorized Hacks . | . . . . . . . . Terminals . | . . . . . . . . Fabricators . | . . . . . . . . Repair Stations . | . . . . . . . . Recycling Units . | . . . . . . . . Scanalyzers . | . . . . . . . . Garrison Access . | . . . . . . . . Data Cores Recovered . | . . . . . . . . Used . | . . . . . . . . Hacking Detections 7 | . 1 . 5 . . . 1 Full Trace Events 3 | . . . 2 . . . 1 Feedback Events . | . . . . . . . . Feedback Blocked . | . . . . . . . . Robot Schematics Acquired 3 | . . . . . 3 . . Robots Built . | . . . . . . . . Authchips . | . . . . . . . . Time . | . . . . . . . . Total Robot Build Rating . | . . . . . . . . Part Schematics Acquired 18 | . . . 1 . 17 . . Parts Built . | . . . . . . . . Authchips . | . . . . . . . . Time . | . . . . . . . . Total Part Build Rating . | . . . . . . . . Parts Repaired 2 | . . . 2 . . . . Time 83 | . . . 83 . . . . Parts Recycled . | . . . . . . . . Recycled Matter . | . . . . . . . . Retrieved Matter . | . . . . . . . . Retrieved Components 9 | . . . 9 . . . . Parts Scanalyzed 1 | . . . 1 . . . . Part Schematics Acquired 1 | . . . 1 . . . . Parts Damaged . | . . . . . . . . Bothacking | -11 -10 -10 -9 -9 -7 -6 -6 ------------ Run | Yrd Mat Min Mat Min Zio Pro Fac Used RIF Installer . | . . . . . . . . Robots Hacked . | . . . . . . . . Non-combat . | . . . . . . . . Combat . | . . . . . . . . Robot Hacks Applied . | . . . . . . . . Relay Couplers Released . | . . . . . . . . Fabnet Peak Effective % . | . . . . . . . . Robots Rewired . | . . . . . . . . Allies Hacked . | . . . . . . . . Hacks Repelled . | . . . . . . . . Allies | -11 -10 -10 -9 -9 -7 -6 -6 -------- Run | Yrd Mat Min Mat Min Zio Pro Fac Total Allies 9 | . . 3 . 2 4 . . Largest Group 4 | . . 3 . 2 4 4 . Highest-Rated Group 148 | . . 40 . 47 148 148 . Highest-Rated Ally 39 | . . 16 . 31 39 39 . Zionite Dispatches 1 | . . . . . . . 1 Recon 1 | . . . . . . . 1 Total Orders . | . . . . . . . . Ally Attacks 33 | . . 9 . 4 . 20 . Total Damage 762 | . . 111 . 64 . 587 . Kills 6 | . . 2 . 2 . 2 . Allies Corrupted . | . . . . . . . . Allies Melted . | . . . . . . . . Intel | -11 -10 -10 -9 -9 -7 -6 -6 ------- Run | Yrd Mat Min Mat Min Zio Pro Fac Robot Analysis Total 1 | . . . 1 . . . . Derelict Logs Recovered 7 | . . 2 . 2 . 3 . Drone Launches . | . . . . . . . . Drone Recoveries . | . . . . . . . . Decoded 0b10 Intel 59 | . . . . . . . 59 Items 59 | . . . . . . . 59 Exploration | -11 -10 -10 -9 -9 -7 -6 -6 ------------- Run | Yrd Mat Min Mat Min Zio Pro Fac Turns Passed 12919 | 61 1250 740 3110 1078 3609 1636 1435 Spaces Moved 5807 | 33 731 419 1491 394 1500 622 617 Core 14 | 3 . . . . . . 11 Treads 5553 | 30 731 419 1491 394 1500 622 366 Legs . | . . . . . . . . Wheels 240 | . . . . . . . 240 Hover . | . . . . . . . . Flight . | . . . . . . . . Fastest Speed 50 | 50 160 160 160 240 240 240 103 Average Speed 200 | 150 160 160 173 240 240 240 179 Slowest Speed 1400 | 160 160 160 240 240 240 242 1400 Overloaded Moves . | . . . . . . . . Propulsion Burnouts . | . . . . . . . . Robots Hopped . | . . . . . . . . Cave-ins Triggered . | . . . . . . . . Exploration Rate (%) 59 | 3 80 58 86 72 90 79 11 Regions Visited 7 Branch Regions 4 Pre-discovered Areas 6 | . . 1 . 2 2 1 . Known Exits Taken 1 | . . . 1 . . . . Unknown Exits Taken 6 | 1 1 1 . 1 1 1 . Scrap Searched 7 | . . . . . 3 4 . Spaces Dug . | . . . . . . . . Terrain Destroyed 89 | . . . 62 . . 27 . Melee . | . . . . . . . . Projectile 1 | . . . 1 . . . . AOE 88 | . . . 61 . . 27 . Terrain Rammed . | . . . . . . . . Walls Destroyed . | . . . . . . . . Machines Disabled . | . . . . . . . . Actions | -11 -10 -10 -9 -9 -7 -6 -6 --------- Run | Yrd Mat Min Mat Min Zio Pro Fac Total 6694 | 44 790 475 1846 522 1510 693 814 Wait 471 | . 24 47 186 126 . 2 86 Move 5800 | 32 730 418 1490 393 1499 621 617 Hop . | . . . . . . . . Pick Up 76 | 6 14 1 26 . 7 4 18 Fast Attach . | . . . . . . . . Attach 43 | 5 3 . 6 . . 7 22 Detach 3 | . . . 1 . . 1 1 Swap 42 | 1 3 . 20 . 1 9 8 Drop 23 | . 2 1 18 . 2 . . Fire 155 | . 13 8 90 3 . 37 4 Melee 61 | . . . . . . 4 57 Ram . | . . . . . . . . Kick . | . . . . . . . . Crush 14 | . 1 . 9 . . 4 . Escape Stasis . | . . . . . . . . Rewire 1 | . . . . . 1 . . Trap . | . . . . . . . . Miscellaneous 5 | . . . . . . 4 1 Route ------- -11/Scrapyard -10/Materials (discovered 4 exits: *Mat x3 / [*Min]) -10/Mines -9/Materials (discovered 4 exits: *Mat x3 / *Min) -9/Mines (discovered 3 exits: *Mat x2 / *Zio) -7/Zion -6/Proximity Caves -6/Factory (discovered 1 exit: Fac) History --------- Turn | Location | Event 14 | -11/Scrapyard | Discovered new exit (range 16) 62 | -11/Scrapyard | Entered Materials 164 | -10/Materials | Met 8R-AWN 303 | -10/Materials | Build established: Mutant 471 | -10/Materials | Discovered new exit (range 14) 657 | -10/Materials | Discovered new exit (range 5) 816 | -10/Materials | Discovered new exit (range 12) 1196 | -10/Materials | Discovered new exit (range 11) 1312 | -10/Materials | Entered Mines 1314 | -10/Mines | Followed 8R-AWN into the Mines 1319 | -10/Mines | Received a Rocket Launcher from a helpful Derelict 1356 | -10/Mines | Met a Derelict bent on vengeance 1362 | -10/Mines | Learned location of 2 exits from Materials 1453 | -10/Mines | Discovered new exit (range 15) 1597 | -10/Mines | Assisted by bots powering up and referring to "LRC-V3" 1945 | -10/Mines | Assembled infested the area 1950 | -10/Mines | Assisted by a Guerilla fighting off Assembled 1992 | -10/Mines | Lost 3 allies 1998 | -10/Mines | Learned location of Recycling (-8) 2052 | -10/Mines | Entered Materials 2052 | -9/Materials | Evolved 2 slots: Propulsion x2 2053 | -9/Materials | Identified exit to Materials 2053 | -9/Materials | Identified exit to Mines 2666 | -9/Materials | Discovered exit to Materials (range 16) 3971 | -9/Materials | Repaired Autogun 4182 | -9/Materials | Repaired Cld. Ion Engine 4306 | -9/Materials | Discovered exit to Materials (range 3) 5162 | -9/Materials | Entered Mines 5330 | -9/Mines | Learned Materials stockpile data 5351 | -9/Mines | Learned location of Storage (-8) 5725 | -9/Mines | Discovered exit to Materials (range 13) 6096 | -9/Mines | Learned location of Zion (-7) 6101 | -9/Mines | Discovered exit to Materials (range 6) 6195 | -9/Mines | A Derelict revealed a hidden shortcut to a safe place 6240 | -9/Mines | Entered Zion 6240 | -7/Zion | Accompanied by 2 allies 6286 | -7/Zion | Learned location of Warlord (-4) 6290 | -7/Zion | Led the pair of lost Derelicts to a safe place 6345 | -7/Zion | System corruption cleaned by Quarantine Array 6496 | -7/Zion | Learned location of Quarantine (-3) 7242 | -7/Zion | Discovered new exit (range 12) 7506 | -7/Zion | Found CR-A16's Pointy Stick 8105 | -7/Zion | Imprinted 8107 | -7/Zion | Declared Zion's savior 8487 | -7/Zion | Found GAL Module 9308 | -7/Zion | Found Prototype Device 9849 | -7/Zion | Entered Proximity Caves 9849 | -6/Proximity Caves | Accompanied by 4 allies 9873 | -6/Proximity Caves | Spotted B-75 Beast 9901 | -6/Proximity Caves | Allies destroyed B-75 Beast 10454 | -6/Proximity Caves | Learned 8 Factory zone layouts 10608 | -6/Proximity Caves | Learned location of 1 exit from Factory 10788 | -6/Proximity Caves | Attracted the attention of an 0b10 base 10829 | -6/Proximity Caves | Lost 3 allies 10835 | -6/Proximity Caves | Core integrity fell below 50% 10901 | -6/Proximity Caves | Lost 6 parts (3n1u2w) 11305 | -6/Proximity Caves | Discovered new exit (range 12) 11314 | -6/Proximity Caves | Identified Mobile Refinery Mk. CCLXVII 11485 | -6/Proximity Caves | Entered Factory 11485 | -6/Factory | Evolved 6 slots: Propulsion x2, Utility x2, Weapon x2 11486 | -6/Factory | Identified exit to Factory 11507 | -6/Factory | Build established: Scavenger-Mutant 12068 | -6/Factory | Lost 3 parts (1n1u1w) 12134 | -6/Factory | Core integrity fell below 50% 12175 | -6/Factory | System corruption reached 10% 12192 | -6/Factory | Lost 12 parts (1p8n2u1w) 12218 | -6/Factory | Core integrity fell below 20% 12359 | -6/Factory | Build established: Mutant 12758 | -6/Factory | Zion Recon squad teleported in 12841 | -6/Factory | Build established: Scavenger-Mutant 12881 | -6/Factory | Lost 4 parts (3n1w) 12920 | -6/Factory | Destroyed by Y-54 Guardian with Flak Gun Last Messages --------------- >> DECODED: Weapon Cycler location. K-01 Serf cleans the Terminal. Sneak attack on M-28 Smith. M-28 Smith suffers critical hit (Smash). Destroyed Imp. Recalibrator. Destroyed Lgt. Deuterium Engine. M-28 Smith system corrupted by crushing effect. M-28 Smith system terminally corrupted. Machine Analyzer fried. Wheel fried. K-01 Serf collects debris. R-10 Processor collects Backup Laser III. Acquired Backup Plating III. K-01 Serf collects debris. R-10 Processor collects Backup Propulsion III. K-01 Serf cleans the Fusion Modulator. K-01 Serf collects debris. >> DECODED: Prototype Device location. R-10 Processor collects Backup Propulsion III. Wheel destroyed. Map ----- +----------------------------------------------------+ | ?????????????# #???????????????????????? | | ?????????????##########+##?????????????????!?????? | | ?????????????????###### #????????????????????????? | | ?????????????????# # #??????????????????????=?? | | ?????????????????# # ###??????????????????????? | | ?????????????????# # +??????????????????????? | | ?????????????????# # ###??????????????????????? | | ?????????????????# # #???!?!??????????????????? | | ??#####+########## + #???/????????????????????? | | ? # # #??!/??=?????????????????? | | ? ###### ###??????????????????????? | | #??# #??????????????????????? | | #### [#??????????????????????? | | #??????????????????????? | | #??# ###### ###### #????????????? "???????? | | #?????????# #????# #!??????????? """?????? | | #?????????# #????### #####+######## ?????? | | #?????????# #??????# ????? | | ####+######+##?????# ????? | | # #?????# ???? | | # #?????#### ???? | | # #????????# ???? | | # #????????#####%##########????????? | | # #???????######+####??????????????? | | # #???????#% #??????????????? | | + ! #???????#@Tk #??????????????? | | # #???????# Y*[ #??????????????? | | # #???]???# """ """ #??????????????? | | # #???????#R""" """ #??????????????? | | # +????]? + """k""" #??????????????? | | # #???? # #??????!???????? | | ##+#+######+##?? !# * #??????????????? | | #?????????## ?###########??????????????? | | #??????????# ??????????????????????????? | | [ #??????????# ???????????????????????????? | | [/ #??????????# ????????????????????????????? | | [ ###????????# ????????????????????????????? | | ?? ?????????????????????????????? | | """" ? ??????????????????????????????? | | """" ! ???????????????????????????????? | | """" ????????????????????????????????? | | """" ????????????????????????????????? | | """" ?????????!??????????????????????? | | """" ????????????????????????????????? | | """" ??????????!????????????[?]???????? | | ?? ?????????????????????????????????? | | ??? ??????????????????????????????????? | | ??? ? ?????????????????????????????????????? | | ?????????????????????????????????????????????? | | #?????????????????????????????????????????????? | +----------------------------------------------------+ Best States ------------- Heat Dissipation 37 Energy Generation 14 Energy Capacity 280 Matter Stores 300 Matter Capacity 300 Sight Range 16 Terrain Scan Density 10 Armor Coverage 375 Resistance: KI 50 Resistance: TH 20 Resistance: EX 20 Resistance: EM 20 Resistance: I 20 Resistance: S 20 Resistance: P 20 Evasion (%) 40 Core Analysis 6 Recoil Reduction 6 Offensive Hacking 10 Item Schematics ----------------- Cld. Ion Engine | -9/Materials | Scanalyzed Battle Rifle | -7/Zion | Free Battle Cannon | -7/Zion | Free Greatsword | -7/Zion | Archive Adv. Sensor Array | -7/Zion | Archive Hrd. Heavy Armor Plating | -7/Zion | Archive Power Amplifier | -7/Zion | Archive Weapon Cycler | -7/Zion | Archive System Guard | -7/Zion | Archive Plasma Cannon | -7/Zion | Archive Arm. Medium Treads | -7/Zion | Archive Imp. Arc Projector | -7/Zion | Archive Gatling Laser | -7/Zion | Archive Cloaking Device | -7/Zion | Archive Spk. Medium Treads | -7/Zion | Archive Mak. Terrain Scan Processor | -7/Zion | Archive Xenon Bombardment Thruster | -7/Zion | Archive EM Disruption Field | -7/Zion | Archive Robot Schematics ------------------ R-06 Scavenger | -7/Zion | Archive A-02 Transporter | -7/Zion | Archive S-27 Virus | -7/Zion | Archive Fabricated ------------ Nothing Alien Tech Used ----------------- None Achievements -------------- Decoder Ring Fist Fight I'm Back, Baby! Robot Respite System Compromised The One Tourist Challenges ------------ None Game ------ Seed GravitonBladeMultirail Manual? 0 Play Time 01:45:39 Cumulative 5.0 hours Start 2024.04.04 @ 17:19:57 End 2024.04.04 @ 19:30:11 Sessions 1 Manual Loads 0 Difficulty Adventurer Special Mode None Game No. 5 Rogue 0 Adventurer 2 Explorer 3 Win Type - Total 0 Types 0/0/0/0/0/0/0/0/0 Lore% 7 Gallery% 11 Achievement% 9 Wizard Run 0 Options --------- Layout 1 ASCII 0 Keyboard 0 Movement Arrows Keybinds 0 Fullscreen 1 Font 16/SmallcapsGlow Map View 55x38 Zoom Use 0% Tactical HUD 0 Map Filters NONE Filters NONE Steam 1 RUN: f452b7b9-1000-4e39-82bb-37bfd49db5c3